fUSD/lending_fUSD_20240404
["ID","MTS","AMOUNT","RATE_DAILY","PERIOD"]
[321471102,1712205100817,-577.28,0.00052876,120]
[321471103,1712205100826,-500.0,0.00052876,120]
[321471104,1712205100835,-1207.08,0.00052876,120]
[321471105,1712205100844,-500.0,0.00052876,120]
[321471106,1712205100853,-500.0,0.00052876,120]
[321471107,1712205100862,-500.0,0.00052876,120]
[321471108,1712205100871,-1008.29,0.00052876,120]
[321471109,1712205100880,-529.90651531,0.00052876,120]
[321471110,1712205100889,-961.33,0.00052876,120]
[321471111,1712205100899,-500.0,0.00052876,30]
[321471112,1712205100909,-500.0,0.00052876,120]
[321471113,1712205100918,-1320.47,0.00052876,120]
[321471114,1712205100928,-809.26,0.00052876,120]
[321471115,1712205100937,-500.0,0.00052876,120]
[321471116,1712205100947,-639.11,0.00052876,120]
[321471117,1712205100956,-500.0,0.00052876,120]
[321471118,1712205100964,-500.0,0.00052876,120]
[321471119,1712205100974,-3073.71,0.00052876,120]
[321471120,1712205100983,-825.58,0.00052876,120]
[321471121,1712205100993,-523.08927046,0.00052876,120]
[321471122,1712205101003,-500.0,0.00052876,120]
[321471123,1712205101012,-500.0,0.00052876,120]
[321471124,1712205101021,-511.62,0.00052876,120]
[321471125,1712205101031,-500.0,0.00052876,120]
[321471126,1712205101040,-979.87,0.00052876,120]
[321471127,1712205101050,-1518.67,0.00052876,120]
[321471128,1712205101059,-500.0,0.00052876,120]
[321471129,1712205101069,-890.02,0.00052876,120]
[321471130,1712205101077,-1007.14,0.00052876,120]
[321471131,1712205101087,-500.0,0.00052876,120]
[321471132,1712205101096,-716.41,0.00052876,120]
[321471133,1712205101105,-500.0,0.00052876,120]
[321471134,1712205101114,-507.29,0.00052876,120]
[321471135,1712205101124,-966.92,0.00052876,120]
[321471136,1712205101133,-1389.35,0.00052876,120]
[321471137,1712205101142,-582.21350869,0.00052876,120]
[321471138,1712205101151,-500.0,0.00052876,120]
[321471139,1712205101161,-1078.84,0.00052876,120]
[321471140,1712205101170,-500.0,0.00052876,120]
[321471141,1712205101179,-305.91355656,0.00052876,120]
[321471142,1712205101189,-1428.96,0.00052876,120]
[321471143,1712205101197,-500.0,0.00052876,120]
[321471144,1712205101207,-522.61170393,0.00052876,120]
[321471145,1712205101216,-1144.06,0.00052876,120]
[321471146,1712205101225,-500.0,0.00052876,120]
[321471147,1712205101234,-500.0,0.00052876,120]
[321471148,1712205101245,-500.0,0.00052876,120]
[321471149,1712205101254,-701.6,0.00052876,120]
[321471150,1712205101263,-500.0,0.00052876,120]
[321471151,1712205101274,-500.0,0.00052876,120]
[321471152,1712205101287,-1827.54,0.00052876,120]
[321471153,1712205101296,-558.34416528,0.00052876,120]
[321471154,1712205101305,-532.88,0.00052876,120]
[321471155,1712205101314,-1307.92,0.00052876,120]
[321471156,1712205101324,-500.0,0.00052876,120]
[321471157,1712205101333,-500.0,0.00052876,120]
[321471158,1712205101342,-179.69427337,0.00052876,120]
[321471159,1712205101351,-500.0,0.00052876,120]
[321471160,1712205101362,-535.7036347,0.00052876,120]
[321471161,1712205101371,-500.0,0.00052876,120]
[321471162,1712205101380,-622.59,0.00052876,120]
[321471163,1712205101389,-1424.54,0.00052876,120]
[321471164,1712205101398,-541.24,0.00052876,120]
[321471165,1712205101408,-500.0,0.00052876,120]
[321471166,1712205101417,-342.01302066,0.00052876,120]
[321471167,1712205101426,-1178.01,0.00052876,120]
[321471168,1712205101435,-1663.72,0.00052876,120]
[321471169,1712205101444,-500.0,0.00052876,120]
[321471170,1712205101453,-1438.86,0.00052876,120]
[321471171,1712205101462,-1664.32,0.00052876,120]
[321471172,1712205101471,-500.0,0.00052876,120]
[321471173,1712205101481,-1833.14,0.00052876,120]
[321471174,1712205101490,-500.0,0.00052876,120]
[321471175,1712205101500,-500.0,0.00052876,120]
[321471176,1712205101509,-500.0,0.00052876,120]
[321471177,1712205101518,-875.14,0.00052876,120]
[321471178,1712205101527,-736.73,0.00052876,120]
[321471179,1712205101536,-406.9216049,0.00052876,120]
[321471180,1712205101546,-500.0,0.00052876,120]
[321471181,1712205101556,-500.0,0.00052876,60]
[321471182,1712205101566,-500.0,0.00052876,120]
[321471183,1712205101575,-512.34831199,0.00052876,120]
[321471184,1712205101585,-1920.59,0.00052876,120]
[321471185,1712205101595,-500.0,0.00052876,120]
[321471186,1712205101604,-451.05305276,0.00052876,120]
[321471187,1712205101614,-500.0,0.00052876,120]
[321471188,1712205101624,-1354.06,0.00052876,120]
[321471189,1712205101633,-500.0,0.00052876,120]
[321471190,1712205101643,-500.0,0.00052876,120]
[321471191,1712205101652,-500.0,0.00052876,120]
[321471192,1712205101662,-500.0,0.00052876,120]
[321471193,1712205101671,-500.0,0.00052876,120]
[321471194,1712205101681,-500.0,0.00052876,120]
[321471195,1712205101691,-629.63,0.00052876,120]
[321471196,1712205101701,-897.12,0.00052876,120]
[321471197,1712205101711,-500.0,0.00052876,120]
[321471198,1712205101721,-500.0,0.00052876,120]
[321471199,1712205101730,-819.98,0.00052876,120]
[321471200,1712205101740,-500.0,0.00052876,120]
[321471201,1712205101750,-1262.32,0.00052876,120]
[321471202,1712205101759,-940.76,0.00052876,120]
[321471203,1712205101768,-726.38,0.00052876,120]
[321471204,1712205101777,-500.0,0.00052876,120]
[321471205,1712205101786,-500.0,0.00052876,120]
[321471206,1712205101796,-512.7,0.00052876,120]
[321471207,1712205101806,-500.0,0.00052876,120]
[321471208,1712205101815,-500.0,0.00052876,120]
[321471209,1712205101825,-1285.39,0.00052876,120]
[321471210,1712205101835,-980.5,0.00052876,120]
[321471211,1712205101845,-500.0,0.00052876,120]
[321471212,1712205101855,-674.11,0.00052876,120]
[321471213,1712205101864,-500.0,0.00052876,120]
[321471214,1712205101874,-2008.58,0.00052876,120]
[321471215,1712205101883,-463.9917398,0.00052876,120]
[321471216,1712205101893,-500.0,0.00052876,120]
[321471217,1712205101902,-250.81762789,0.00052876,120]
[321471218,1712205101912,-1228.06,0.00052876,30]
[321471219,1712205101921,-562.17993701,0.00052876,120]
[321471220,1712205101931,-500.0,0.00052876,120]
[321471221,1712205101940,-500.0,0.00052876,120]
[321471222,1712205101950,-500.0,0.00052876,120]
[321471223,1712205101959,-541.91105929,0.00052876,120]
[321471224,1712205101968,-500.0,0.00052876,120]
[321471225,1712205101977,-500.0,0.00052876,120]
[321471226,1712205101987,-500.0,0.00052876,120]
[321471227,1712205101997,-1204.57,0.00052876,120]
[321471228,1712205102007,-1417.29,0.00052876,120]
[321471229,1712205102017,-500.0,0.00052876,120]
[321471230,1712205102026,-907.36,0.00052876,120]
[321471231,1712205102036,-500.0,0.00052876,120]
[321471232,1712205102045,-1723.96,0.00052876,120]
[321471233,1712205102054,-812.67,0.00052876,120]
[321471234,1712205102063,-1192.49,0.00052876,120]
[321471235,1712205102072,-1113.07,0.00052876,120]
[321471236,1712205102081,-634.62,0.00052876,120]
[321471237,1712205102090,-812.33,0.00052876,120]
[321471238,1712205102099,-856.61,0.00052876,120]
[321471239,1712205102108,-519.19,0.00052876,120]
[321471240,1712205102117,-832.86,0.00052876,120]
[321471241,1712205102126,-500.0,0.00052876,120]
[321471242,1712205102135,-1000.0,0.00052876,120]
[321471243,1712205102144,-618.09,0.00052876,120]
[321471244,1712205102154,-500.0,0.00052876,120]
[321471245,1712205102163,-529.57,0.00052876,120]
[321471246,1712205102174,-1165.58,0.00052876,120]
[321471247,1712205102186,-500.0,0.00052876,120]
[321471248,1712205102196,-752.78,0.00052876,120]
[321471249,1712205102205,-1348.76,0.00052876,120]
[321471250,1712205102214,-1254.14,0.00052876,120]
[321471251,1712205102223,-576.95,0.00052876,120]
[321471252,1712205102232,-500.0,0.00052876,120]
[321471253,1712205102242,-500.0,0.00052876,120]
[321471254,1712205102251,-500.0,0.00052876,120]
[321471255,1712205102260,-842.6,0.00052876,120]
[321471256,1712205102271,-1172.08,0.00052876,120]
[321471257,1712205102284,-500.0,0.00052876,120]
[321471258,1712205102293,-528.5414575,0.00052876,120]
[321471259,1712205102302,-1190.98,0.00052876,120]
[321471260,1712205102311,-439.06530147,0.00052876,120]
[321471261,1712205102321,-500.0,0.00052876,120]
[321471262,1712205102330,-500.0,0.00052876,120]
[321471263,1712205102339,-1826.59,0.00052876,120]
[321471264,1712205102348,-541.731602,0.00052876,120]
[321471265,1712205102358,-500.0,0.00052876,120]
[321471266,1712205102368,-500.0,0.00052876,120]
[321471267,1712205102377,-1081.11,0.00052876,120]
[321471268,1712205102387,-500.0,0.00052876,120]
[321471269,1712205102395,-500.0,0.00052876,120]
[321471270,1712205102404,-507.71706011,0.00052876,120]
[321471271,1712205102413,-500.0,0.00052876,120]
[321471272,1712205102423,-1393.26,0.00052876,120]
[321471273,1712205102432,-500.0,0.00052876,120]
[321471274,1712205102441,-1177.14,0.00052876,60]
[321471275,1712205102450,-635.38,0.00052876,120]
[321471276,1712205102459,-500.0,0.00052876,120]
[321471277,1712205102468,-828.45,0.00052876,120]
[321471278,1712205102477,-500.0,0.00052876,120]
[321471279,1712205102486,-1282.03,0.00052876,120]
[321471280,1712205102496,-556.7,0.00052876,120]
[321471281,1712205102505,-509.11222891,0.00052876,2]
[321471282,1712205102515,-540.72518677,0.00052876,120]
[321471283,1712205102525,-1480.12,0.00052876,120]
[321471284,1712205102535,-500.0,0.00052876,120]
[321471285,1712205102544,-681.87,0.00052876,120]
[321471286,1712205102555,-500.0,0.00052876,120]
[321471287,1712205102565,-500.0,0.00052876,120]
[321471288,1712205102574,-1240.18,0.00052876,120]
[321471289,1712205102584,-1005.94,0.00052876,120]
[321471290,1712205102593,-500.0,0.00052876,120]
[321471291,1712205102604,-1766.52,0.00052876,120]
[321471292,1712205102613,-500.0,0.00052876,120]
[321471293,1712205102623,-500.0,0.00052876,120]
[321471294,1712205102633,-526.68935315,0.00052876,120]
[321471295,1712205102643,-550.72936447,0.00052876,120]
[321471296,1712205102652,-500.0,0.00052876,120]
[321471297,1712205102662,-522.041549,0.00052876,120]
[321471298,1712205102671,-500.0,0.00052876,120]
[321471299,1712205102680,-336.51734738,0.00052876,120]
[321471300,1712205102690,-500.0,0.00052876,120]
[321471301,1712205102699,-1375.95,0.00052876,120]
[321471302,1712205102708,-517.47094416,0.00052876,120]
[321471303,1712205102718,-871.82,0.00052876,120]
[321471304,1712205102727,-823.85,0.00052876,120]
[321471305,1712205102736,-500.0,0.00052876,120]
[321471306,1712205102747,-1750.93,0.00052876,120]
[321471307,1712205102757,-559.75,0.00052876,120]
[321471308,1712205102766,-741.9,0.00052876,120]
[321471309,1712205102775,-500.0,0.00052876,120]
[321471310,1712205102784,-678.18,0.00052876,120]
[321471311,1712205102794,-500.0,0.00052876,120]
[321471312,1712205102803,-723.7,0.00052876,120]
[321471313,1712205102813,-500.0,0.00052876,120]
[321471314,1712205102822,-500.0,0.00052876,120]
[321471315,1712205102832,-631.14,0.00052876,120]
[321471316,1712205102841,-1180.82,0.00052876,120]
[321471317,1712205102851,-1906.89,0.00052876,120]
[321471318,1712205102860,-1118.0,0.00052876,120]
[321471319,1712205102870,-500.0,0.00052876,120]
[321471320,1712205102879,-728.77,0.00052876,120]
[321471321,1712205102889,-1251.78,0.00052876,120]
[321471322,1712205102898,-1877.13,0.00052876,120]
[321471323,1712205102907,-500.0,0.00052876,120]
[321471324,1712205102918,-1679.36,0.00052876,120]
[321471325,1712205102927,-700.41,0.00052876,120]
[321471326,1712205102936,-974.99,0.00052876,120]
[321471327,1712205102946,-500.0,0.00052876,120]
[321471328,1712205102956,-1427.78,0.00052876,120]
[321471329,1712205102966,-519.66254148,0.00052876,120]
[321471330,1712205102976,-1340.28,0.00052876,120]
[321471331,1712205102985,-539.48,0.00052876,120]
[321471332,1712205102997,-966.98,0.00052876,120]
[321471333,1712205103006,-500.0,0.00052876,120]
[321471334,1712205103016,-1158.63,0.00052876,120]
[321471335,1712205103025,-1783.96,0.00052876,120]
[321471336,1712205103035,-500.0,0.00052876,120]
[321471337,1712205103045,-584.05,0.00052876,120]
[321471338,1712205103054,-500.0,0.00052876,120]
[321471339,1712205103063,-500.0,0.00052876,2]
[321471340,1712205103073,-500.0,0.00052876,120]
[321471341,1712205103083,-536.38303555,0.00052876,120]
[321471342,1712205103092,-578.06,0.00052876,120]
[321471343,1712205103102,-1053.65,0.00052876,120]
[321471344,1712205103111,-500.0,0.00052876,120]
[321471345,1712205103120,-500.0,0.00052876,120]
[321471346,1712205103130,-500.0,0.00052876,120]
[321471347,1712205103139,-439.20259023,0.00052876,120]
[321471348,1712205103148,-977.07,0.00052876,120]
[321471349,1712205103158,-500.0,0.00052876,120]
[321471350,1712205103168,-1293.92,0.00052876,120]
[321471351,1712205103177,-1027.41,0.00052876,120]
[321471352,1712205103187,-792.68,0.00052876,120]
[321471353,1712205103196,-500.0,0.00052876,120]
[321471354,1712205103205,-500.0,0.00052876,120]
[321471355,1712205103215,-500.0,0.00052876,120]
[321471356,1712205103224,-1653.33,0.00052876,2]
[321471357,1712205103233,-536.75354126,0.00052876,120]
[321471358,1712205103437,-742.14,0.00052876,120]
[321471359,1712205103455,-500.0,0.00052876,120]
[321471360,1712205103465,-596.79,0.00052876,120]
[321471361,1712205103474,-615.35,0.00052876,120]
[321471362,1712205103484,-500.0,0.00052876,120]
[321471363,1712205103493,-500.0,0.00052876,120]
[321471364,1712205103502,-6209.7,0.00052876,120]
[321471365,1712205103511,-500.0,0.00052876,120]
[321471366,1712205103521,-325.80345053,0.00052876,120]
[321471367,1712205103532,-782.7,0.00052876,120]
[321471368,1712205103541,-431.39892598,0.00052876,120]
[321471369,1712205103551,-811.28,0.00052876,120]
[321471370,1712205103560,-2370.45,0.00052876,120]
[321471371,1712205103569,-522.7656187,0.00052876,120]
[321471372,1712205103581,-908.82,0.00052876,120]
[321471373,1712205103593,-586.59795923,0.00052876,120]
[321471374,1712205103602,-500.0,0.00052876,120]
[321471375,1712205103614,-5425.66,0.00052876,120]
[321471376,1712205103625,-500.0,0.00052876,120]
[321471377,1712205103636,-1688.23,0.00052876,120]
[321471378,1712205103646,-2287.71,0.00052876,120]
[321471379,1712205103656,-500.0,0.00052876,120]
[321471380,1712205103666,-500.0,0.00052876,120]
[321471381,1712205103676,-506.27165281,0.00052876,120]
[321471382,1712205103686,-813.48,0.00052876,120]
[321471383,1712205103696,-627.13,0.00052876,120]
[321471384,1712205103705,-768.18,0.00052876,120]
[321471385,1712205103715,-1062.93,0.00052876,120]
[321471386,1712205103725,-675.6,0.00052876,120]
[321471387,1712205103734,-3516.97,0.00052876,120]
[321471388,1712205103745,-516.01295362,0.00052876,120]
[321471389,1712205103755,-249.13114122,0.00052876,120]
[321471390,1712205103765,-2937.6,0.00052876,120]
[321471391,1712205103775,-703.82,0.00052876,120]
[321471392,1712205103785,-512.4169267,0.00052876,120]
[321471393,1712205103794,-3956.7,0.00052876,120]
[321471394,1712205103805,-1109.35,0.00052876,120]
[321471395,1712205103815,-641.98,0.00052876,120]
[321471396,1712205103824,-1030.18,0.00052876,120]
[321471397,1712205103834,-546.35,0.00052876,120]
[321471398,1712205103844,-1379.83,0.00052876,120]
[321471399,1712205103855,-689.73,0.00052876,120]
[321471400,1712205103864,-1626.2,0.00052876,120]
[321471401,1712205103874,-5319.39,0.00052876,120]
[321471402,1712205103883,-797.4,0.00052876,120]
[321471403,1712205103893,-8838.72,0.00052876,120]
[321471404,1712205103903,-54319.25,0.00052876,120]
[321471405,1712205103915,-645.37,0.00052876,120]
[321471406,1712205103924,-674.64,0.00052876,120]
[321471407,1712205103934,-855.27,0.00052876,120]
[321471408,1712205103944,-1951.61,0.00052876,120]
[321471409,1712205103954,-1172.77,0.00052876,120]
[321471410,1712205103963,-1292.21,0.00052876,120]
[321471411,1712205103973,-6835.54,0.00052876,120]
[321471412,1712205103982,-500.0,0.00052876,120]
[321471413,1712205103993,-2636.23,0.00052876,120]
[321471414,1712205104002,-614.29,0.00052876,120]
[321471415,1712205104012,-2413.37,0.00052876,120]
[321471416,1712205104022,-1669.21,0.00052876,120]
[321471417,1712205104032,-560.72,0.00052876,120]
[321471418,1712205104042,-1926.24,0.00052876,120]
[321471419,1712205104051,-530.55201248,0.00052876,120]
[321471420,1712205104061,-690.28,0.00052876,120]
[321471421,1712205104070,-532.24,0.00052876,120]
[321471422,1712205104079,-673.57,0.00052876,120]
[321471423,1712205104088,-500.0,0.00052876,120]
[321471424,1712205104097,-1990.16,0.00052876,120]
[321471425,1712205104106,-5699.44,0.00052876,120]
[321471426,1712205104116,-747.68,0.00052876,120]
[321471427,1712205104125,-871.75,0.00052876,120]
[321471428,1712205104135,-1134.76,0.00052876,120]
[321471429,1712205104144,-1852.1,0.00052876,7]
[321471430,1712205104154,-2775.68,0.00052876,120]
[321471431,1712205104163,-6399.43,0.00052876,120]
[321471432,1712205104172,-500.0,0.00052876,120]
[321471433,1712205104182,-941.86,0.00052876,120]
[321471434,1712205104191,-1100.83,0.00052876,120]
[321471435,1712205104201,-500.0,0.00052876,120]
[321471436,1712205104210,-8100.11,0.00052876,120]
[321471437,1712205104220,-526.40869904,0.00052876,120]
[321471438,1712205104229,-500.0,0.00052876,120]
[321471439,1712205104238,-1665.56,0.00052876,120]
[321471440,1712205104248,-521.4488399,0.00052876,120]
[321471441,1712205104258,-12647.89,0.00052876,120]
[321471442,1712205104267,-500.0,0.00052876,120]
[321471443,1712205104279,-543.49407012,0.00052876,120]
[321471444,1712205104290,-1265.23,0.00052876,120]
[321471445,1712205104299,-500.0,0.00052876,120]
[321471446,1712205104309,-552.28,0.00052876,120]
[321471447,1712205104319,-1011.59,0.00052876,120]
[321471448,1712205104329,-1253.38,0.00052876,120]
[321471449,1712205104339,-2437.96,0.00052876,120]
[321471450,1712205104348,-500.0,0.00052876,120]
[321471451,1712205104359,-3480.11,0.00052876,120]
[321471452,1712205104368,-777.91,0.00052876,120]
[321471453,1712205104377,-533.66470454,0.00052876,120]
[321471454,1712205104386,-965.52,0.00052876,120]
[321471455,1712205104396,-1939.99,0.00052876,120]
[321471456,1712205104406,-881.61,0.00052876,120]
[321471457,1712205104415,-500.0,0.00052876,120]
[321471458,1712205104425,-272.48849072,0.00052876,120]
[321471459,1712205104435,-2571.32,0.00052876,120]
[321471460,1712205104446,-3309.16,0.00052876,120]
[321471461,1712205104458,-2476.89,0.00052876,120]
[321471462,1712205104467,-500.0,0.00052876,120]
[321471463,1712205104477,-500.0,0.00052876,120]
[321471464,1712205104486,-588.17,0.00052876,120]
[321471465,1712205104497,-1648.98,0.00052876,120]
[321471466,1712205104507,-500.0,0.00052876,120]
[321471467,1712205104516,-1872.11,0.00052876,120]
[321471468,1712205104526,-2494.98,0.00052876,120]
[321471469,1712205104535,-571.44,0.00052876,120]
[321471470,1712205104545,-771.63,0.00052876,120]
[321471471,1712205104554,-473.7721276,0.00052876,120]
[321471472,1712205104564,-4066.04,0.00052876,120]
[321471473,1712205104573,-500.0,0.00052876,120]
[321471474,1712205104583,-500.0,0.00052876,120]
[321471475,1712205104592,-2429.57,0.00052876,120]
[321471476,1712205104602,-2376.39,0.00052876,120]
[321471477,1712205104611,-1719.99,0.00052876,120]
[321471478,1712205104621,-3283.89,0.00052876,120]
[321471479,1712205104631,-5606.0,0.00052876,120]
[321471480,1712205104640,-627.51,0.00052876,120]
[321471481,1712205104652,-658.56,0.00052876,120]
[321471482,1712205104662,-680.97,0.00052876,120]
[321471483,1712205104672,-1697.6,0.00052876,120]
[321471484,1712205104681,-1208.03,0.00052876,120]
[321471485,1712205104691,-902.7,0.00052876,120]
[321471486,1712205104700,-752.9,0.00052876,120]
[321471487,1712205104710,-2703.79,0.00052876,120]
[321471488,1712205104719,-2345.81,0.00052876,120]
[321471489,1712205104731,-1470.5,0.00052876,120]
[321471490,1712205104741,-500.0,0.00052876,120]
[321471491,1712205104754,-2947.7,0.00052876,120]
[321471492,1712205104763,-3729.05,0.00052876,120]
[321471493,1712205104773,-500.0,0.00052876,120]
[321471494,1712205104782,-3940.03,0.00052876,120]
[321471495,1712205104792,-455.59865371,0.00052876,120]
[321471496,1712205104802,-595.65,0.00052876,120]
[321471497,1712205104811,-500.0,0.00052876,120]
[321471498,1712205104824,-3031.42,0.00052876,120]
[321471499,1712205104833,-3107.18,0.00052876,120]
[321471500,1712205104843,-500.0,0.00052876,120]
[321471501,1712205104853,-924.61,0.00052876,120]
[321471502,1712205104864,-500.0,0.00052876,120]
[321471503,1712205104873,-3097.18,0.00052876,120]
[321471504,1712205104883,-500.0,0.00052876,120]
[321471505,1712205104893,-500.0,0.00052876,120]
[321471506,1712205104903,-790.05,0.00052876,120]
[321471507,1712205104914,-1346.47,0.00052876,120]
[321471508,1712205104923,-500.0,0.00052876,120]
[321471509,1712205104933,-2784.95,0.00052876,120]
[321471510,1712205104943,-648.73,0.00052876,120]
[321471511,1712205104953,-500.0,0.00052876,120]
[321471512,1712205104963,-1479.97,0.00052876,120]
[321471513,1712205104973,-500.0,0.00052876,120]
[321471514,1712205104982,-500.0,0.00052876,120]
[321471515,1712205104991,-500.0,0.00052876,120]
[321471516,1712205105002,-3455.77,0.00052876,120]
[321471517,1712205105012,-500.0,0.00052876,120]
[321471518,1712205105021,-3175.76,0.00052876,120]
[321471519,1712205105031,-2739.86,0.00052876,120]
[321471520,1712205105041,-1313.71,0.00052876,120]
[321471521,1712205105051,-4665.17,0.00052876,120]
[321471522,1712205105061,-1097.27,0.00052876,120]
[321471523,1712205105071,-799.28,0.00052876,120]
[321471524,1712205105081,-672.19,0.00052876,120]
[321471525,1712205105091,-500.0,0.00052876,120]
[321471526,1712205105100,-735.54,0.00052876,120]
[321471527,1712205105110,-500.0,0.00052876,120]
[321471528,1712205105119,-5949.11,0.00052876,120]
[321471529,1712205105128,-500.0,0.00052876,120]
[321471530,1712205105138,-2791.3,0.00052876,120]
[321471531,1712205105148,-14921.22,0.00052876,120]
[321471532,1712205105157,-18245.67,0.00052876,120]
[321471533,1712205105166,-4475.43,0.00052876,120]
[321471534,1712205105176,-6275.85,0.00052876,120]
[321471535,1712205105185,-500.0,0.00052876,120]
[321471536,1712205105195,-2018.13,0.00052876,120]
[321471537,1712205105204,-500.0,0.00052876,120]
[321471538,1712205105214,-1108.08,0.00052876,120]
[321471539,1712205105223,-919.9,0.00052876,120]
[321471540,1712205105232,-2135.87,0.00052876,120]
[321471541,1712205105241,-6102.44,0.00052876,120]
[321471542,1712205105251,-5109.05,0.00052876,120]
[321471543,1712205105260,-500.0,0.00052876,120]
[321471544,1712205105271,-524.88176006,0.00052876,120]
[321471545,1712205105283,-992.63,0.00052876,120]
[321471546,1712205105293,-500.0,0.00052876,120]
[321471547,1712205105302,-600.0,0.00052876,2]
[321471548,1712205105311,-500.0,0.00052876,120]
[321471549,1712205105320,-23315.73,0.00052876,120]
[321471550,1712205105330,-4703.57,0.00052876,120]
[321471551,1712205105339,-4151.44,0.00052876,120]
[321471552,1712205105352,-500.0,0.00052876,120]
[321471553,1712205105363,-6927.54,0.00052876,120]
[321471554,1712205105372,-500.0,0.00052876,120]
[321471555,1712205105382,-30956.78679822,0.00052876,120]
[321471556,1712205106103,-10399.85320178,0.00052876,120]
[321471557,1712205106113,-615.36,0.00052876,120]
[321471558,1712205106123,-870.28,0.00052876,120]
[321471559,1712205106132,-500.0,0.00052876,120]
[321471560,1712205106142,-500.0,0.00052876,120]
[321471561,1712205106151,-1849.99,0.00052876,120]
[321471562,1712205106160,-15792.18,0.00052876,120]
[321471563,1712205106169,-1272.03,0.00052876,120]
[321471564,1712205106179,-3696.52,0.00052876,120]
[321471565,1712205106188,-1123.27,0.00052876,120]
[321471566,1712205106197,-3344.08,0.00052876,120]
[321471567,1712205106207,-500.0,0.00052876,120]
[321471568,1712205106215,-676.77,0.00052876,120]
[321471569,1712205106225,-500.0,0.00052876,120]
[321471570,1712205106234,-2939.58,0.00052876,120]
[321471571,1712205106243,-537.37,0.00052876,120]
[321471572,1712205106252,-1303.95,0.00052876,120]
[321471573,1712205106263,-500.0,0.00052876,120]
[321471574,1712205106273,-1733.35,0.00052876,7]
[321471575,1712205106284,-4080.08,0.00052876,120]
[321471576,1712205106293,-4886.13,0.00052876,120]
[321471577,1712205106302,-837.75,0.00052876,120]
[321471578,1712205106310,-1635.35,0.00052876,120]
[321471579,1712205106319,-1732.84,0.00052876,120]
[321471580,1712205106329,-5099.91,0.00052876,120]
[321471581,1712205106338,-1209.39,0.00052876,120]
[321471582,1712205106346,-509.97,0.00052876,120]
[321471583,1712205106357,-875.1,0.00052876,120]
[321471584,1712205106366,-3432.21,0.00052876,120]
[321471585,1712205106375,-1694.74,0.00052876,120]
[321471586,1712205106384,-575.29,0.00052876,120]
[321471587,1712205106393,-4905.13,0.00052876,120]
[321471588,1712205106403,-2782.34,0.00052876,120]
[321471589,1712205106412,-7766.11,0.00052876,120]
[321471590,1712205106421,-888.72,0.00052876,120]
[321471591,1712205106430,-3864.9,0.00052876,120]
[321471592,1712205106439,-751.57,0.00052876,120]
[321471593,1712205106448,-803.25,0.00052876,120]
[321471594,1712205106457,-500.0,0.00052876,120]
[321471595,1712205106466,-4562.2,0.00052876,120]
[321471596,1712205106475,-1987.82,0.00052876,120]
[321471597,1712205106484,-8315.86,0.00052876,30]
[321471598,1712205106493,-1851.98,0.00052876,120]
[321471599,1712205106503,-500.0,0.00052876,120]
[321471600,1712205106512,-2271.57,0.00052876,120]
[321471601,1712205106522,-500.0,0.00052876,120]